Cogmind - Beta 15 @@@ ROGUE MODE // 2025.05.15 @ 16:41:51 Player: G4-R3D Result: Destroyed by P-60 Hacker with Shock Rifle Performance ------------- Evolutions (4) 2000 Regions Visited (8) 1600 Robots Destroyed (12) 60 Value Destroyed (259) 259 Prototype IDs (28) 560 Alien Tech Used (0) 0 Bonus (465) 465 TOTAL SCORE: 4944 Bonus ------- Follower Combat Kills 165 Aligned with FarCom 300 Cogmind --------- Core Integrity 0/850 Matter 300/300 Energy 100/100 System Corruption 2% Temperature Cool (0) Movement Core (50) Location -6/Extension Parts ------- > --- POWER (1) -------- (None) > --- PROPULSION (4) --- (None) > --- UTILITY (8) ------ Improved Terrain Scan Processor > --- WEAPON (2) ------- (None) > --- INVENTORY (5) ---- ECM Suite Improved Utility Shielding Authchip [Propulsion] Grenade Launcher Field Lobotomy Kit (5) Peak State ------------ > --- POWER ------------ Enhanced Nuclear Core > --- PROPULSION ------- VTOL Module Cesium-ion Thruster Cesium-ion Thruster Cesium-ion Thruster > --- UTILITY ---------- Advanced Terrain Scanner Improved Terrain Scan Processor Improved Targeting Computer ECM Suite Improved Reaction Control System Hacking Suite Hacking Suite Improved Hacking Suite > --- WEAPON ----------- Katana Great Axe > --- INVENTORY -------- ECM Suite Improved Utility Shielding Authchip [Propulsion] Grenade Launcher Field Lobotomy Kit [Rating: 51] Favorites ----------- Power Enhanced Nuclear Core Engine Improved Ion Engine Power Core Enhanced Nuclear Core Propulsion Cesium-ion Thruster Treads Improved Treads Flight Unit Cesium-ion Thruster Utility Improved Terrain Scan Processor Device ECM Suite Storage Small Storage Unit Processor Improved Terrain Scan Processor Hackware Hacking Suite Protection Utility Shielding Weapon Maul Energy Gun EM Shotgun Ballistic Gun Flak Gun Launcher Advanced EMP Blaster Impact Weapon Maul Slashing Weapon Katana Build | -11 -10 -10 -10 -9 -8 -7 -6 -6 ------- Run | Yrd Mat Min Exi Min Mat Fac Fac Ext Slots Evolved 8 | . . . . . 4 2 2 . Power . | . . . . . . . . . Propulsion 2 | . . . . . 1 1 . . Utility 6 | . . . . . 3 1 2 . Weapon . | . . . . . . . . . Parts Attached 49 | 2 6 3 . . 15 8 4 11 Power 3 | . . . . . . 1 1 1 Engine 1 | . . . . . . 1 . . Core 2 | . . . . . . . 1 1 Reactor . | . . . . . . . . . Propulsion 13 | . 2 . . . 6 1 . 4 Treads 4 | . . . . . . . . 4 Leg . | . . . . . . . . . Wheel . | . . . . . . . . . Hover . | . . . . . . . . . Flight 9 | . 2 . . . 6 1 . . Utility 20 | . 1 2 . . 6 5 3 3 Device 9 | . 1 1 . . 2 1 2 2 Storage 1 | . . . . . 1 . . . Processor 4 | . . . . . 2 2 . . Hackware 4 | . . . . . 1 2 1 . Protection 2 | . . 1 . . . . . 1 Artifact . | . . . . . . . . . Weapon 13 | 2 3 1 . . 3 1 . 3 Energy Gun 2 | 1 . 1 . . . . . . Energy Cannon . | . . . . . . . . . Ballistic Gun 5 | 1 1 . . . 1 . . 2 Ballistic Cannon . | . . . . . . . . . Launcher 1 | . . . . . 1 . . . Special Weapon . | . . . . . . . . . Impact Weapon 2 | . 2 . . . . . . . Slashing Weapon 3 | . . . . . 1 1 . 1 Piercing Weapon . | . . . . . . . . . Special Melee Weapon . | . . . . . . . . . Unidentified Prototypes 4 | . . 1 . . 2 . 1 . Parts Lost 31 | . . . . . 6 . . 25 Power 2 | . . . . . . . . 2 Propulsion 13 | . . . . . 5 . . 8 Utility 11 | . . . . . 1 . . 10 Weapon 5 | . . . . . . . . 5 Highest Loss Streak 13 | . . . . . 5 . . 13 To Critical Strikes . | . . . . . . . . . Average Backups 4 | . 2 3 4 5 5 5 5 5 Power . | . . . . . . . . . Propulsion . | . . 1 1 1 . . . . Utility 1 | . 1 1 1 1 1 2 2 3 Weapon 1 | . 1 1 2 2 3 2 1 1 Tool/Special . | . . . . . . . . . Unused Backups 6 | . . . . . . . 1 5 Power . | . . . . . . . . . Propulsion . | . . . . . . . . . Utility 3 | . . . . . . . . 3 Weapon 2 | . . . . . . . 1 1 Tool/Special 1 | . . . . . . . . 1 Average Slot Usage (%) 67 | . 20 72 85 85 63 94 95 42 Core 1 | . . . . . . . 4 2 Treads 2 | . . . . . . . . 10 Flight 17 | . 1 28 28 28 20 29 25 1 Device 9 | . . 10 14 14 5 14 19 5 Storage 1 | . . . . . 3 . . . Processor 11 | . . . . . 13 26 13 6 Hackware 3 | . . . . . . 2 16 2 Protection 3 | . . 10 14 14 7 . . . Energy Gun 1 | . 2 10 14 14 . . . . Ballistic Gun 2 | . 4 . . . 3 . . 4 Impact Weapon 5 | . 10 14 14 14 8 6 . . Slashing Weapon 4 | . . . . . . 7 13 5 Peak Build Rating 51 | 2 4 16 10 10 23 36 51 51 Average Rating 22 | 1 2 8 9 10 14 32 45 20 On Entrance 16 | . 2 4 9 10 10 23 36 51 Naked Turns . | . . . . . . . . . Heaviest Build 19 | 2 3 8 8 8 12 16 19 19 Greatest Support 66 | 3 8 8 8 8 15 19 19 66 Greatest Overweight (x) 2 | . . . . . 1 . . 2 Average Overweight (x) . | . . . . . . . . . Largest Inventory Capacity 8 | 5 5 5 5 5 8 5 5 5 Average Capacity 5 | 5 5 5 5 5 6 5 5 5 Most Carried 8 | . 5 5 5 5 8 5 5 5 Average Carried 4 | . 3 3 4 5 5 5 4 5 Final Capacity 5 | 5 5 5 5 5 5 5 5 5 Final Carried 5 | . 5 4 5 5 5 5 5 5 Class Distribution -------------------- 38% | Mutant 19% | Hacker-Ninja 17% | Scout 11% | Ninja 5% | Scavenger-Mutant 3% | Commander-Mutant Dominant Class ---------------- Mutant | -10/Materials Mutant | -10/Mines Mutant | -10/Exiles Scout | -9/Mines Scout | -8/Materials Ninja | -7/Factory Hacker-Ninja | -6/Factory Mutant | -6/Extension Resources | -11 -10 -10 -10 -9 -8 -7 -6 -6 ----------- Run | Yrd Mat Min Exi Min Mat Fac Fac Ext Matter Collected 696 | 218 62 30 . . 81 . 141 164 Remotely . | . . . . . . . . . Salvage Created 406 | . 26 . . . 81 . 31 268 Parts 22 | . . . . . 7 . 2 13 Haulers Intercepted . | . . . . . . . . . Recyclers Shooed . | . . . . . . . . . Parts Field Recycled . | . . . . . . . . . Retrieved Matter . | . . . . . . . . . Parts Self-Destructed . | . . . . . . . . . Prevented . | . . . . . . . . . Kills | -11 -10 -10 -10 -9 -8 -7 -6 -6 ------- Run | Yrd Mat Min Exi Min Mat Fac Fac Ext Combat Hostiles Destroyed 9 | . . . . . 7 . . 2 Melee 6 | . . . . . 4 . . 2 Guns 2 | . . . . . 2 . . . Classes Destroyed 4 | . 1 . . . 1 . . 2 Recycler 1 | . . . . . . . . 1 Watcher 2 | . 1 . . . . . 1 . Swarmer 7 | . . . . . 7 . . . Sentry 2 | . . . . . . . . 2 Best Kill Streak 4 | . 1 . . . 4 . 1 1 Combat Bots Only 4 | . . . . . 4 . . 1 Max Kills in Single Turn 1 | . 1 . . . 1 . 1 1 Gunslinging . | . . . . . . . . . Exploded . | . . . . . . . . . Melee 1 | . . . . . 1 . . 1 Uniques/NPCs Destroyed . | . . . . . . . . . Combat | -11 -10 -10 -10 -9 -8 -7 -6 -6 -------- Run | Yrd Mat Min Exi Min Mat Fac Fac Ext Hostile Shots Fired 566 | . . . . . 103 48 . 415 Missed 220 | . . . . . 45 26 . 149 Hits 346 | . . . . . 58 22 . 266 Projectile 346 | . . . . . 58 22 . 266 AOE 1 | . . . . . . . . 1 Critical Strikes 3 | . . . . . 3 . . . Damage Taken 2903 | . 18 . . . 713 163 . 2009 Core 1286 | . 18 . . . 386 31 . 851 Absorbed by Shields . | . . . . . . . . . Redirected to Shielding 5 | . . . . . 5 . . . Regen/Repaired (Parts) 52 | . . . . . 9 . 43 . Core Remaining (%) 79 | 100 . . . 92 29 95 . . Volleys Fired 7 | . . . . . 4 . . 3 Largest 1 | . . . . . 1 . . 1 Hottest 28 | . . . . . 25 . . 28 Shots Fired 7 | . . . . . 4 . . 3 Gun 7 | . . . . . 4 . . 3 Cannon . | . . . . . . . . . Launcher . | . . . . . . . . . Special . | . . . . . . . . . Kinetic 7 | . . . . . 4 . . 3 Thermal . | . . . . . . . . . Explosive . | . . . . . . . . . Electromagnetic . | . . . . . . . . . Robot Hit Streak 2 | . . . . . 2 . . 1 Robot Miss Streak 4 | . . . . . 1 . . 4 Penetration Max . | . . . . . . . . . Secondary Targets . | . . . . . . . . . Shots Hit Robots 36 | . 2 . . . 11 3 3 17 Core Hits 12 | . . . . . 3 . 1 8 Critical Kills . | . . . . . . . . . Critical Parts Destroyed 1 | . . . . . 1 . . . Critical Strikes 4 | . . . . . 1 . 1 2 Smash 1 | . . . . . 1 . . . Sever 3 | . . . . . . . 1 2 Melee Attacks 100 | . 2 5 . . 38 9 31 15 Impact 48 | . 2 5 . . 38 3 . . Slashing 52 | . . . . . . 6 31 15 Piercing . | . . . . . . . . . Sneak Attacks 2 | . . . . . 1 . . 1 Combat Hostiles . | . . . . . . . . . Follow-up Attacks 3 | . . . . . . . 1 2 Damage Inflicted 1343 | . 87 . . . 398 124 107 627 Guns 71 | . . . . . 48 . . 23 Cannons . | . . . . . . . . . Explosions . | . . . . . . . . . Melee 1250 | . 87 . . . 350 124 107 582 Ramming 22 | . . . . . . . . 22 Kinetic 71 | . . . . . 48 . . 23 Thermal . | . . . . . . . . . Explosive . | . . . . . . . . . Electromagnetic . | . . . . . . . . . Impact 437 | . 87 . . . 350 . . . Slashing 813 | . . . . . . 124 107 582 Piercing . | . . . . . . . . . Highest Corruption 2 | . . . . . 1 . 2 2 Average Corruption 1 | . . . . . 1 . 1 2 Corruption Purged . | . . . . . . . . . Corruption Blocked . | . . . . . . . . . Effects 8 | . . . . . . . 1 7 Matter Fused 2 | . . . . . . . . 2 Energy Discharges 3 | . . . . . . . 1 2 Data Loss (minor) 1 | . . . . . . . . 1 Data Loss (major) 1 | . . . . . . . . 1 Alerts 1 | . . . . . . . . 1 Overload Shots . | . . . . . . . . . Overflow Damage 161 | . 7 . . . 153 . 1 . Projectiles . | . . . . . . . . . Explosions . | . . . . . . . . . Melee 161 | . 7 . . . 153 . 1 . Knockbacks 2 | . . . . . 2 . . . Impact 2 | . . . . . 2 . . . Kinetic . | . . . . . . . . . Secondary . | . . . . . . . . . Self-Inflicted Damage 11 | . . . . . . . . 11 Shots . | . . . . . . . . . Rammed 2 | . . . . . . . . 2 Targets Rammed 2 | . . . . . . . . 2 Kicked . | . . . . . . . . . Crushed . | . . . . . . . . . Highest Temperature . | . . . . . . . . . Average Temperature . | . . . . . . . . . Received Heat Transfer 753 | . . . . . 180 45 . 528 Siege Activations . | . . . . . . . . . Martial Activations . | . . . . . . . . . Shielding Activations . | . . . . . . . . . Robots Disrupted . | . . . . . . . . . Combat Hostiles . | . . . . . . . . . Robots Corrupted 2 | . 1 . . . 1 . . . Combat Hostiles 1 | . . . . . 1 . . . Parts Fried 6 | . 1 . . . 5 . . . Impact Corruptions 9 | . 2 . . . 7 . . . Robots Melted . | . . . . . . . . . Combat Hostiles . | . . . . . . . . . Parts Melted . | . . . . . . . . . Heat Transferred . | . . . . . . . . . Parts Sabotaged . | . . . . . . . . . Parts Stolen . | . . . . . . . . . Parts Stripped . | . . . . . . . . . Power Chain Reactions . | . . . . . . . . . Alert | -11 -10 -10 -10 -9 -8 -7 -6 -6 ------- Run | Yrd Mat Min Exi Min Mat Fac Fac Ext Maximum Alert Level 1 | . . . . . 1 . . . Low Security (%) 98 | 100 100 100 . 100 93 100 100 100 Level 1 1 | . . . . . 6 . . . Level 2 . | . . . . . . . . . Level 3 . | . . . . . . . . . Level 4 . | . . . . . . . . . Level 5 . | . . . . . . . . . High Security . | . . . . . . . . . Max Security . | . . . . . . . . . Peak Influence 319 | . . . . . 319 144 41 61 Initial 144 | . . . . . . 144 40 14 Average 47 | . . . . . 89 103 11 15 Influence Increases 1039 | . 7 . . . 616 99 124 193 Destroy 0b10 Robot/C 260 | . . . . . 140 . . 120 Destroy 0b10 Robot/NC 15 | . 5 . . . . . 5 5 Destroy Leader 44 | . 2 . . . 20 . 2 20 Allied During Kill 19 | . . . . . . . . 19 Successful Hack 98 | . . . . . 32 4 52 10 Select Force Hacks 60 | . . . . . 30 . 30 . Disable Machine 45 | . . . . . 45 . . . Destroy Structure 48 | . . . . . 19 5 20 4 Partial Spotted 75 | . . . . . 30 45 . . Lose Combat Pursuer 375 | . . . . . 300 45 15 15 Influence Decreases 1039 | . 7 . . . 297 335 176 224 Entered New Map 235 | . . . . . . 175 43 17 Time Decay 665 | . 7 . . . 237 160 127 134 Lost Part 80 | . . . . . 60 . . 20 Lost Ally 59 | . . . . . . . 6 53 Squads Dispatched 14 | . 2 . . . 3 1 6 2 Investigation 9 | . 1 . . . 2 . 4 2 Extermination 3 | . . . . . . 1 2 . Reinforcement 2 | . 1 . . . 1 . . . Assault . | . . . . . . . . . Garrison . | . . . . . . . . . Intercept . | . . . . . . . . . Searches Triggered . | . . . . . . . . . Construction Impeded . | . . . . . . . . . Haulers Reinforced . | . . . . . . . . . Active Scanning Responses . | . . . . . . . . . Cargo Convoy Interrupts . | . . . . . . . . . Stealth | -11 -10 -10 -10 -9 -8 -7 -6 -6 --------- Run | Yrd Mat Min Exi Min Mat Fac Fac Ext Distress Signals 8 | . 2 . . . 3 1 . 2 Communications Jammed . | . . . . . . . . . Distress Signals . | . . . . . . . . . Times Spotted 77 | . 9 . . . 42 6 5 15 Peak Tracking Total 16 | . 3 . . . 16 4 3 7 Tactical Retreats 11 | . . . . . 7 2 1 1 Traps | -11 -10 -10 -10 -9 -8 -7 -6 -6 ------- Run | Yrd Mat Min Exi Min Mat Fac Fac Ext Traps Triggered 3 | . . . . . . 1 1 1 Indirectly . | . . . . . . . . . Trap Hack Attempts . | . . . . . . . . . Triggered . | . . . . . . . . . Disarmed . | . . . . . . . . . Reprogrammed . | . . . . . . . . . Reused . | . . . . . . . . . Traps Extracted . | . . . . . . . . . Installed . | . . . . . . . . . Triggered . | . . . . . . . . . Machines | -11 -10 -10 -10 -9 -8 -7 -6 -6 ---------- Run | Yrd Mat Min Exi Min Mat Fac Fac Ext Machines Disabled 3 | . . . . . 3 . . . Max in Single Turn 1 | . . . . . 1 . . . Machines Repaired . | . . . . . . . . . Machines Dismantled . | . . . . . . . . . Machines Sabotaged . | . . . . . . . . . Overloaded Fab Kills . | . . . . . . . . . Hacking | -11 -10 -10 -10 -9 -8 -7 -6 -6 --------- Run | Yrd Mat Min Exi Min Mat Fac Fac Ext Machines Accessed 37 | . 2 . 2 . 10 6 14 3 Terminals 26 | . 2 . . . 7 4 10 3 Fabricators 1 | . . . . . . . 1 . Repair Stations 4 | . . . . . 1 2 1 . Recycling Units 2 | . . . . . 1 . 1 . Scanalyzers 2 | . . . . . 1 . 1 . Garrison Access . | . . . . . . . . . Total Hacks 97 | . 5 . 5 . 30 11 40 6 Successful 51 | . . . 5 . 15 4 25 2 Failed 46 | . 5 . . . 15 7 15 4 Catastrophic 7 | . . . . . 3 3 1 . Database Lockouts . | . . . . . . . . . Manual 47 | . 5 . 1 . 19 7 15 . Terminals 71 | . 5 . . . 23 8 29 6 Fabricators 2 | . . . . . . . 2 . Repair Stations 9 | . . . . . 2 3 4 . Recycling Units 2 | . . . . . 1 . 1 . Scanalyzers 8 | . . . . . 4 . 4 . Garrison Access . | . . . . . . . . . Terminal Hacks 16 | . . . 5 . 3 . 6 2 Record 4 | . . . 4 . . . . . Part Schematic 2 | . . . . . . . 2 . Open Door 2 | . . . . . . . 1 1 Branch Access Points 1 | . . . . . 1 . . . Terminal Index 1 | . . . . . . . 1 . Locate Traps 1 | . . . . . . . . 1 Recall Extermination 1 | . . . . . . . 1 . Zone Layout 3 | . . . . . 2 . 1 . Proto ID Catalog 1 | . . . 1 . . . . . Fabricator Hacks 1 | . . . . . . . 1 . Load Schematic 1 | . . . . . . . 1 . Repair Station Hacks 6 | . . . . . 2 1 3 . Scan Component 4 | . . . . . 1 1 2 . Repair 2 | . . . . . 1 . 1 . Recycling Unit Hacks . | . . . . . . . . . Scanalyzer 8 | . . . . . 4 . 4 . Insert Component 4 | . . . . . 2 . 2 . Analyze 4 | . . . . . 2 . 2 . Garrison Access Hacks . | . . . . . . . . . Unauthorized Hacks 20 | . . . . . 6 3 11 . Terminals 16 | . . . . . 5 3 8 . Assimilate 1 | . . . . . . . 1 . Botnet 15 | . . . . . 5 3 7 . Fabricators 1 | . . . . . . . 1 . Recompile 1 | . . . . . . . 1 . Repair Stations 1 | . . . . . . . 1 . Patch 1 | . . . . . . . 1 . Recycling Units 2 | . . . . . 1 . 1 . Tunnel 2 | . . . . . 1 . 1 . Scanalyzers . | . . . . . . . . . Garrison Access . | . . . . . . . . . Data Cores Recovered . | . . . . . . . . . Used . | . . . . . . . . . Hacking Detections 30 | . 2 . . . 8 6 12 2 Full Trace Events 4 | . 1 . . . 1 . 1 1 Feedback Events 1 | . . . . . . . 1 . Corruption 1 | . . . . . . . 1 . Feedback Blocked . | . . . . . . . . . Robot Schematics Acquired . | . . . . . . . . . Robots Built . | . . . . . . . . . Authchips . | . . . . . . . . . Time . | . . . . . . . . . Total Robot Build Rating . | . . . . . . . . . Part Schematics Acquired 6 | . . . . . 2 . 4 . Parts Built . | . . . . . . . . . Authchips . | . . . . . . . . . Time . | . . . . . . . . . Total Part Build Rating . | . . . . . . . . . Parts Repaired 2 | . . . . . 1 . 1 . Time 45 | . . . . . 26 . 19 . Parts Recycled . | . . . . . . . . . Recycled Matter . | . . . . . . . . . Retrieved Matter . | . . . . . . . . . Retrieved Components . | . . . . . . . . . Parts Scanalyzed 4 | . . . . . 2 . 2 . Part Schematics Acquired 4 | . . . . . 2 . 2 . Parts Damaged . | . . . . . . . . . Bothacking | -11 -10 -10 -10 -9 -8 -7 -6 -6 ------------ Run | Yrd Mat Min Exi Min Mat Fac Fac Ext Used RIF Installer . | . . . . . . . . . Robots Hacked . | . . . . . . . . . Non-combat . | . . . . . . . . . Combat . | . . . . . . . . . Robot Hacks Applied . | . . . . . . . . . Relay Couplers Released . | . . . . . . . . . Fabnet Peak Effective % . | . . . . . . . . . Robots Rewired 9 | . . . . . . . . 9 Allies Hacked . | . . . . . . . . . Hacks Repelled . | . . . . . . . . . Allies | -11 -10 -10 -10 -9 -8 -7 -6 -6 -------- Run | Yrd Mat Min Exi Min Mat Fac Fac Ext Total Allies 12 | . . . . . . . 1 11 Largest Group 5 | . . . . . . . 1 5 Highest-Rated Group 129 | . . . . . . . 10 129 Highest-Rated Ally 39 | . . . . . . . 10 39 Total Orders . | . . . . . . . . . Ally Attacks 42 | . . . . . . . . 42 Total Damage 960 | . . . . . . . . 960 Kills 4 | . . . . . . . . 4 Allies Corrupted . | . . . . . . . . . Allies Melted . | . . . . . . . . . Intel | -11 -10 -10 -10 -9 -8 -7 -6 -6 ------- Run | Yrd Mat Min Exi Min Mat Fac Fac Ext Active Infowar (turns) 1315 | . 17 44 135 46 334 317 390 32 Sensors 356 | . 17 44 135 46 114 . . . Terrain 959 | . . . . . 220 317 390 32 ECM 26 | . . . . . . 26 . . Robot Analysis Total . | . . . . . . . . . Derelict Logs Recovered 2 | . . 1 . 1 . . . . Drone Launches . | . . . . . . . . . Drone Recoveries . | . . . . . . . . . Exploration | -11 -10 -10 -10 -9 -8 -7 -6 -6 ------------- Run | Yrd Mat Min Exi Min Mat Fac Fac Ext Turns Passed 2256 | 17 157 55 135 46 593 332 390 531 Spaces Moved 3595 | 25 226 64 361 123 812 629 1059 296 Core 411 | 25 200 . . . 103 . . 83 Treads 171 | . . . . . . . . 171 Legs . | . . . . . . . . . Wheels . | . . . . . . . . . Hover . | . . . . . . . . . Flight 3013 | . 26 64 361 123 709 629 1059 42 Fastest Speed 26 | 50 37 37 37 37 29 26 26 26 Average Speed 39 | 50 48 37 37 37 37 29 26 111 Slowest Speed 160 | 50 50 37 37 37 117 32 26 160 Overloaded Moves . | . . . . . . . . . Propulsion Burnouts . | . . . . . . . . . Robots Hopped 24 | . . . . . 6 9 3 6 Potential Cave-ins . | . . . . . . . . . Cave-ins Triggered 1 | . . . . . 1 . . . Exploration Rate (%) 39 | 3 37 20 87 46 74 22 31 34 Regions Visited 8 Branch Regions 4 Pre-discovered Areas 3 | . . . 1 . 1 . 1 . Known Exits Taken . | . . . . . . . . . Unknown Exits Taken 8 | 1 1 1 1 1 1 1 1 . Scrap Searched 1 | . . 1 . . . . . . Spaces Dug 45 | . . . . . 19 5 20 1 Terrain Destroyed 45 | . . . . . 19 5 20 1 Melee 45 | . . . . . 19 5 20 1 Projectile . | . . . . . . . . . AOE . | . . . . . . . . . Terrain Rammed . | . . . . . . . . . Walls Destroyed . | . . . . . . . . . Machines Disabled . | . . . . . . . . . Actions | -11 -10 -10 -10 -9 -8 -7 -6 -6 --------- Run | Yrd Mat Min Exi Min Mat Fac Fac Ext Total 4213 | 27 269 84 361 122 1015 750 1124 461 Wait 319 | 1 25 9 . . 130 112 27 15 Move 3546 | 24 225 63 360 122 800 612 1052 288 Hop 17 | . . . . . 5 7 3 2 Pick Up 14 | . 4 1 1 . 4 . 4 . Fast Attach 44 | 2 6 1 . . 13 8 3 11 Attach 8 | . . 3 . . 4 . 1 . Detach 10 | . 3 1 . . 5 . 1 . Swap 6 | . . 1 . . 3 . 2 . Drop 21 | . 4 . . . 9 3 5 . Fire 7 | . . . . . 4 . . 3 Melee 92 | . 2 5 . . 38 8 26 13 Ram 2 | . . . . . . . . 2 Kick . | . . . . . . . . . Crush . | . . . . . . . . . Escape Stasis . | . . . . . . . . . Rewire 127 | . . . . . . . . 127 Trap . | . . . . . . . . . Miscellaneous . | . . . . . . . . . Route ------- -11/Scrapyard -10/Materials -10/Mines -10/Exiles -9/Mines -8/Materials -7/Factory -6/Factory -6/Extension History --------- Turn | Location | Event 2 | -11/Scrapyard | Met Revision 17 8 | -11/Scrapyard | Discovered new exit (range 16) 18 | -11/Scrapyard | Entered Materials 97 | -10/Materials | Discovered new exit (range 12) 98 | -10/Materials | Met 8R-AWN 175 | -10/Materials | Entered Mines 176 | -10/Mines | Followed 8R-AWN into the Mines 178 | -10/Mines | Learned Materials stockpile data 192 | -10/Mines | Found a damaged Exp. Sensor Array with a note attached 194 | -10/Mines | Found Prototype Device 194 | -10/Mines | Identified Exp. Sensor Array 209 | -10/Mines | Discovered new exit (range 3) 212 | -10/Mines | Excavation squad dispatched 212 | -10/Mines | A large section of the Mines collapsed 230 | -10/Mines | Entered Exiles 239 | -10/Exiles | Welcomed by 8R-AWN 246 | -10/Exiles | Met EX-HEX 256 | -10/Exiles | Met EX-BIN 260 | -10/Exiles | Aligned with FarCom system 260 | -10/Exiles | Given EX-Vault access code 269 | -10/Exiles | Opened EX-Vault 272 | -10/Exiles | Found Field Lobotomy Kit 281 | -10/Exiles | Warned to stay clear of 0b10 Research branches 292 | -10/Exiles | Met EX-DEC 306 | -10/Exiles | Visited The Gauntlet 312 | -10/Exiles | Build established: Mutant 344 | -10/Exiles | Learned location of Zion (-6) 362 | -10/Exiles | Discovered new exit (range 10) 365 | -10/Exiles | Left Exiles lab with Field Lobotomy Kit 365 | -10/Exiles | Entered Mines 389 | -9/Mines | Learned Materials terminal intel 406 | -9/Mines | Discovered new exit (range 9) 411 | -9/Mines | Entered Materials 411 | -8/Materials | Evolved 4 slots: Propulsion x1, Utility x3 413 | -8/Materials | Loaded intel: 12 terminal locations 628 | -8/Materials | Repaired Flight Unit 802 | -8/Materials | Crushed by falling debris 887 | -8/Materials | Lost 5 parts (4n1u) 920 | -8/Materials | Core integrity fell below 50% 999 | -8/Materials | Discovered new exit (range 11) 1004 | -8/Materials | Entered Factory 1004 | -7/Factory | Evolved 2 slots: Propulsion x1, Utility x1 1324 | -7/Factory | Discovered new exit (range 9) 1336 | -7/Factory | Entered another Factory area 1336 | -6/Factory | Evolved 2 slots: Utility x2 1568 | -6/Factory | Repaired Cesium-ion Thruster 1678 | -6/Factory | Discovered new exit (range 10) 1726 | -6/Factory | Entered Extension 1810 | -6/Extension | Lost 13 parts (1p4n6u2w) 1840 | -6/Extension | Rescued a captive Derelict 1841 | -6/Extension | Rescued a captive Derelict 1860 | -6/Extension | Core integrity fell below 50% 1890 | -6/Extension | Lost 4 parts (1n2u1w) 2117 | -6/Extension | Lost 3 allies 2207 | -6/Extension | Core integrity fell below 20% 2233 | -6/Extension | Lost 8 parts (1p3n2u2w) 2255 | -6/Extension | Spotted B-75 Beast 2257 | -6/Extension | Destroyed by P-60 Hacker with Shock Rifle Last Messages --------------- 02196_ Attempting to rewire WR-YSW(l). 02197_ Flak Gun destroyed. 02197_ Attempting to rewire WR-YSW(l). 02199_ Lgt. Treads destroyed. 02200_ Attempting to rewire WR-YSW(l). 02200_ Imp. Treads destroyed. 02201_ Attempting to rewire WR-YSW(l). 02202_ Phasing Sabre destroyed. 02202_ Attempting to rewire WR-YSW(l). 02202_ Mic. Nuclear Core destroyed. 02203_ Attempting to rewire WR-YSW(l). 02207_ Attempting to rewire NS-3M5(g). 02219_ System corrupted: Energy discharge (-24). 02225_ Attempting to rewire GS-GNL(h). 02226_ GS-GNL(h) rewired. 02231_ Connecting with Door Terminal... 02231_ ALERT: Suspicious activity at Terminal E009. Dispatching Investigation squad. 02254_ Slammed into P-60 Hacker. 02257_ Slammed into U-05 Engineer. Map ----- +----------------------------------------------------+ | ############### = #??????????????????????????? | | += = #??????????????????????????? | | ### ######## / #??????????????????????????? | | #?# #??????# #??????????????????????????? | | ##?# #??????# #??????????????????????????? | | #??# #??????# #??????????????????????????? | | #??# ########"##+#######??????????????????????? | | #??# #??????????????????????? | | #??# ############## ##### #??????????????????????? | | ####/#??????????### #???# #??????????????????????? | | #??????????" #???# #??????????????????????? | | #??????????#T# #???# #??????????????????????? | | #??????????### #???# #??????????????????????? | | #????????????# #???# #??????????????????????? | | #????????????# #???# #??????????????????????? | | #????????????# #???# #??????????????????????? | | ######????????????# #???# #??????????????????????? | | ??????????????????# #???# #??????????????????????? | | ??????????????????T Y??#u#??????????????????????? | | ??????????????????#""???# #??????????????????????? | | ????????????????????????# #??????????????????????? | | ????????????????????????#p#??????????????????????? | | ????????????????????????#%#??????????????????????? | | ????????????????????????# #??????????????????????? | | ????????????????????????# #??????????????????????? | | ????????????????????????#@#??????????????????????? | | ????????????????????????#u#??????????????????????? | | ????????????????????????# #??????????????????????? | | ????????????????????????"Y"????Y?????????????????? | | ????????????????????????" "??????????????????????? | | ???????????????????????? ??????????????????????? | | ???????????????????????? ??????????????????????? | | ??????????????????????? ?????????????????????? | | ??????????????????????? ?????????????????????? | | ??????????????????????? ?????????????????????? | | ??????????????????????? ?????????????????????? | | ??????????????????????? BB?????????????????????? | | ??????????????????????? BB?????????????????????? | | ??????????????????????? ??????BB?????????????? | | ???????????????????????? ???????BB?????????????? | | ???????????????????????? ??????????????????????? | | ?????????????????????????????????????????????????? | | ?????????????????????????????????????????????????? | | ?????????????????????????????????????????????????? | | ?????????????????????????????????????????????????? | | ?????????????????????????????????????????????????? | | | | | | | | | +----------------------------------------------------+ Best States ------------- Heat Dissipation 65 Energy Generation 17 Energy Capacity 300 Matter Stores 300 Matter Capacity 300 Sight Range 16 Robot Scan Range 14 Terrain Scan Range 20 Terrain Scan Density 310 ECM Strength 1 Armor Coverage 150 Utility Shielding 33 Evasion (%) 64 Targeting Accuracy 6 Recoil Reduction 3 Offensive Hacking 32 Defensive Hacking 10 Authchip Count 1 Item Schematics ----------------- Utility Shielding | -8/Materials | Scanalyzed Flight Unit | -8/Materials | Scanalyzed Cesium-ion Thruster | -6/Factory | Scanalyzed ECM Suite | -6/Factory | Scanalyzed Triangulator | -6/Factory | Hacked Cld. Cesium-ion Thruster | -6/Factory | Hacked Robot Schematics ------------------ None Fabricated ------------ Nothing Repaired ---------- Flight Unit | 55% | -8/Materials Cesium-ion Thruster | 16% | -6/Factory Alien Tech Used ----------------- None Achievements -------------- None Challenges ------------ None Game ------ Seed MasterSensorMembrane Manual? 0 Play Time 00:55:32 Cumulative 170.7 hours Start 2025.05.15 @ 15:08:13 End 2025.05.15 @ 16:41:51 Sessions 1 Manual Loads 0 Difficulty Rogue Special Mode None Game No. 89 Rogue 89 Adventurer 0 Explorer 0 Win Type - Total 11 Types 5/0/4/0/2/0/0/0/0/0 Lore% 74 Gallery% 62 Achievement% 62 Wizard Run 0 Options --------- Layout 1 ASCII 0 Keyboard 0 Movement Numpad Keybinds 0 Fullscreen 1 Font 24/Smallcaps Map View 50x35 Zoom Use 0% Tactical HUD 1 Map Filters NONE Filters NONE Steam 1 RUN: ead4753f-e98d-4a9c-925f-28d0fb5c6d3a